[Event "Lithuanian Chess League 2021"]
[Site "Various cities"]
[Date "2021.05.14"]
[Round "5.8"]
[White "Steponavicius, Stasys"]
[Black "Vedrickas, Tautvydas"]
[Result "1-0"]
[WhiteElo "2193"]
[BlackElo "2395"]
[PlyCount "143"]
[TimeControl "90/40+30:0"]
[WhiteClock "0:09:17"]
[BlackClock "0:00:56"]

1. d4 {[%emt 0:00:31]} Nf6 {[%emt 0:00:20]} 2. c4 {[%emt 0:00:08]} c5 {[%emt 0:
00:16]} 3. d5 {[%emt 0:00:09]} b5 {[%emt 0:00:07]} 4. Qc2 {[%emt 0:00:49]} e6 {
[%emt 0:01:47]} 5. e4 {[%emt 0:00:11]} d6 {[%emt 0:00:23]} 6. Nf3 {[%emt 0:01:
21]} g6 {[%emt 0:13:24]} 7. b3 {[%emt 0:03:11]} Bg7 {[%emt 0:01:43]} 8. Bb2 {
[%emt 0:00:11]} exd5 {[%emt 0:03:49]} 9. exd5 {[%emt 0:01:00]} O-O {[%emt 0:00:
41]} 10. Bd3 {[%emt 0:02:47]} Re8+ {[%emt 0:06:40]} 11. Kf1 {[%emt 0:00:19]}
bxc4 {[%emt 0:01:49]} 12. bxc4 {[%emt 0:00:23]} Nbd7 {[%emt 0:09:00]} 13. Nbd2
{[%emt 0:01:19]} Rb8 {[%emt 0:02:45]} 14. Bc3 {[%emt 0:04:43]} Nb6 {[%emt 0:07:
20]} 15. h3 {[%emt 0:15:01]} Ba6 {[%emt 0:05:53]} 16. Kg1 {[%emt 0:08:49]} Nh5
{[%emt 0:14:47]} 17. Bxg7 {[%emt 0:00:53]} Kxg7 {[%emt 0:00:55]} 18. g3 {[%emt
0:01:02]} f5 {[%emt 0:05:37]} 19. Kg2 {[%emt 0:01:10]} Qf6 {[%emt 0:01:20]} 20.
Rab1 {[%emt 0:02:58]} Re7 {[%emt 0:01:50]} 21. Nb3 {[%emt 0:06:02]} Bb7 {[%emt
0:08:59]} 22. Na5 {[%emt 0:02:09]} Ba8 {[%emt 0:00:02]} 23. Qd2 {[%emt 0:05:27]
} h6 {[%emt 0:00:27]} 24. Rhe1 {[%emt 0:02:45]} Rbe8 {[%emt 0:00:10]} 25. Bc2 {
[%emt 0:02:30]} Kh7 {[%emt 0:04:28]} 26. Rxe7+ {[%emt 0:08:45]} Rxe7 {[%emt 0:
00:09]} 27. Re1 {[%emt 0:00:17]} Ng7 {[%emt 0:01:17]} 28. Rxe7 {[%emt 0:06:22]}
Qxe7 {[%emt 0:00:02]} 29. g4 {[%emt 0:00:44]} Qf6 {[%emt 0:04:25]} 30. gxf5 {
[%emt 0:01:10]} Nxf5 {[%emt 0:00:20]} 31. Qf4 {[%emt 0:01:44]} Nc8 {[%emt 0:01:
18]} 32. Bxf5 {[%emt 0:05:21]} gxf5 {[%emt 0:00:22]} 33. Nc6 {[%emt 0:01:38]}
Bxc6 {[%emt 0:00:53]} 34. dxc6 {[%emt 0:00:07]} Ne7 {[%emt 0:00:27]} 35. c7 {
[%emt 0:04:53]} Qe6 {[%emt 0:07:12]} 36. Qh4 {[%emt 0:06:49]} Qg8+ {[%emt 0:02:
12]} 37. Kh2 {[%emt 0:00:29]} Nc8 {[%emt 0:01:37]} 38. Qf6 {[%emt 0:02:50]} Qg6
{[%emt 0:00:12]} 39. Qxg6+ {[%emt 0:00:43]} Kxg6 {[%emt 0:00:02]} 40. Kg3 {
[%emt 0:00:11]} Kf6 {[%emt 0:01:02]} 41. Kf4 {[%emt 0:00:33]} Ke6 {[%emt 0:01:
09]} 42. Nh4 {[%emt 0:01:00]} Kd7 {[%emt 0:06:15]} 43. Nxf5 {[%emt 0:00:36]}
Kxc7 {[%emt 0:00:37]} 44. Ke4 {[%emt 0:05:21]} Nb6 {[%emt 0:02:03]} 45. Kd3 {
[%emt 0:00:44]} d5 {[%emt 0:09:31]} 46. cxd5 {[%emt 0:03:03]} Nxd5 {[%emt 0:00:
05]} 47. Kc4 {[%emt 0:00:12]} Kc6 {[%emt 0:02:59]} 48. Nxh6 {[%emt 0:00:26]}
Nb6+ {[%emt 0:00:15]} 49. Kb3 {[%emt 0:01:33]} c4+ {[%emt 0:03:17]} 50. Kc3 {
[%emt 0:00:35]} Kc5 {[%emt 0:00:14]} 51. Nf5 {[%emt 0:00:23]} Nd5+ {[%emt 0:00:
05]} 52. Kd2 {[%emt 0:03:14]} Kb4 {[%emt 0:06:42]} 53. Ne3 {[%emt 0:03:19]} Nf6
{[%emt 0:00:36]} 54. Nc2+ {[%emt 0:04:02]} Kc5 {[%emt 0:00:13]} 55. f3 {[%emt
0:00:24]} a5 {[%emt 0:00:42]} 56. h4 {[%emt 0:00:42]} Nd5 {[%emt 0:02:12]} 57.
h5 {[%emt 0:00:45]} c3+ {[%emt 0:00:15]} 58. Kd1 {[%emt 0:02:10]} Kc4 {[%emt 0:
01:16]} 59. h6 {[%emt 0:00:24]} Nf4 {[%emt 0:00:33]} 60. h7 {[%emt 0:00:28]}
Ng6 {[%emt 0:00:03]} 61. Ke2 {[%emt 0:00:49]} Nf4+ {[%emt 0:00:38]} 62. Ke3 {
[%emt 0:00:32]} Ng6 {[%emt 0:01:33]} 63. Ke4 {[%emt 0:00:14]} a4 {[%emt 0:00:
34]} 64. f4 {[%emt 0:00:32]} Nh8 {[%emt 0:00:07]} 65. Ne3+ {[%emt 0:03:16]} Kb4
{[%emt 0:00:17]} 66. Kd3 {[%emt 0:00:51]} Ka3 {[%emt 0:01:10]} 67. Kxc3 {[%emt
0:00:35]} Kxa2 {[%emt 0:01:02]} 68. Nc4 {[%emt 0:00:56]} Kb1 {[%emt 0:00:16]}
69. f5 {[%emt 0:00:47]} Nf7 {[%emt 0:01:18]} 70. f6 {[%emt 0:00:21]} Nh8 {
[%emt 0:00:40]} 71. Kb4 {[%emt 0:00:22]} Kc2 {[%emt 0:00:09]} 72. Ne5 {[%emt 0:
00:16]} 1-0

[Event "Lithuanian Chess League 2021"]
[Site "Various cities"]
[Date "2021.05.14"]
[Round "5.9"]
[White "Klabis, Rokas"]
[Black "Miknevicius, Laurynas"]
[Result "1-0"]
[WhiteElo "2329"]
[BlackElo "2186"]
[PlyCount "79"]
[TimeControl "90/40+30:0"]
[WhiteClock "0:01:32"]
[BlackClock "0:05:31"]

1. e4 {[%emt 0:00:06]} c5 {[%emt 0:00:18]} 2. Nf3 {[%emt 0:00:05]} g6 {[%emt 0:
01:04]} 3. Nc3 {[%emt 0:04:38]} Bg7 {[%emt 0:00:21]} 4. g3 {[%emt 0:00:12]} Nc6
{[%emt 0:00:19]} 5. Bg2 {[%emt 0:00:06]} e6 {[%emt 0:05:13]} 6. O-O {[%emt 0:
00:41]} Nge7 {[%emt 0:00:49]} 7. Ne2 {[%emt 0:07:00]} d5 {[%emt 0:04:41]} 8.
exd5 {[%emt 0:00:14]} exd5 {[%emt 0:01:42]} 9. d4 {[%emt 0:04:13]} c4 {[%emt 0:
00:05]} 10. b3 {[%emt 0:02:41]} b5 {[%emt 0:08:20]} 11. c3 {[%emt 0:18:42]} O-O
{[%emt 0:12:06]} 12. Bg5 {[%emt 0:05:48]} Re8 {[%emt 0:05:10]} 13. a4 {[%emt 0:
07:17]} Ba6 {[%emt 0:01:40]} 14. b4 {[%emt 0:03:35]} Qd7 {[%emt 0:03:25]} 15.
Bxe7 {[%emt 0:02:53]} Nxe7 {[%emt 0:00:07]} 16. Re1 {[%emt 0:04:38]} bxa4 {
[%emt 0:11:01]} 17. Rxa4 {[%emt 0:00:08]} Bb5 {[%emt 0:00:08]} 18. Ra5 {[%emt
0:00:04]} a6 {[%emt 0:01:07]} 19. Nf4 {[%emt 0:00:18]} Nc6 {[%emt 0:07:53]} 20.
Ra2 {[%emt 0:00:00]} Bh6 {[%emt 0:00:05]} 21. Ne5 {[%emt 0:05:00]} Nxe5 {[%emt
0:00:08]} 22. Nxd5 {[%emt 0:21:45]} Ng4 {[%emt 0:00:04]} 23. Rxe8+ {[%emt 0:00:
33]} Rxe8 {[%emt 0:00:01]} 24. h3 {[%emt 0:00:02]} Bc6 {[%emt 0:19:01]} 25.
Qxg4 {[%emt 0:00:40]} Re6 {[%emt 0:01:49]} 26. Nb6 {[%emt 0:06:04]} Qe8 {[%emt
0:10:54]} 27. d5 {[%emt 0:00:48]} Re1+ {[%emt 0:01:12]} 28. Kh2 {[%emt 0:00:03]
} Be3 {[%emt 0:01:58]} 29. Nxc4 {[%emt 0:02:08]} Bd7 {[%emt 0:00:20]} 30. Qf3 {
[%emt 0:00:21]} Bg5 {[%emt 0:00:33]} 31. Nd6 {[%emt 0:00:49]} Qe7 {[%emt 0:00:
43]} 32. Ne4 {[%emt 0:00:08]} f5 {[%emt 0:00:39]} 33. Nxg5 {[%emt 0:02:20]}
Qxg5 {[%emt 0:00:02]} 34. Re2 {[%emt 0:00:10]} Rb1 {[%emt 0:00:33]} 35. Qe3 {
[%emt 0:00:13]} Qf6 {[%emt 0:01:18]} 36. Qe7 {[%emt 0:02:21]} Qxe7 {[%emt 0:00:
05]} 37. Rxe7 {[%emt 0:00:02]} Bb5 {[%emt 0:00:01]} 38. d6 {[%emt 0:00:30]} Rd1
{[%emt 0:00:08]} 39. c4 {[%emt 0:01:00]} Bxc4 {[%emt 0:00:06]} 40. d7 {[%emt 0:
00:04]} 1-0

[Event "Lithuanian Chess League 2021"]
[Site "Various cities"]
[Date "2021.05.14"]
[Round "5.10"]
[White "Lazaravicius, Aras Jonas"]
[Black "Sakalauskas, Vaidas"]
[Result "0-1"]
[WhiteElo "1902"]
[BlackElo "2331"]
[PlyCount "124"]
[TimeControl "90/40+30:0"]
[WhiteClock "0:32:16"]
[BlackClock "0:32:30"]

1. d4 {[%emt 0:00:03]} d6 {[%emt 0:01:21]} 2. Nf3 {[%emt 0:00:28]} Bg4 {[%emt
0:00:29]} 3. c4 {[%emt 0:01:47]} Nd7 {[%emt 0:02:36]} 4. g3 {[%emt 0:03:33]}
Bxf3 {[%emt 0:01:15]} 5. exf3 {[%emt 0:00:34]} c6 {[%emt 0:00:53]} 6. Bg2 {
[%emt 0:02:52]} e6 {[%emt 0:03:11]} 7. O-O {[%emt 0:01:47]} d5 {[%emt 0:02:37]}
8. c5 {[%emt 0:10:20]} b6 {[%emt 0:14:01]} 9. cxb6 {[%emt 0:08:11]} axb6 {
[%emt 0:00:17]} 10. Re1 {[%emt 0:03:17]} g6 {[%emt 0:04:19]} 11. Qc2 {[%emt 0:
17:40]} Qc8 {[%emt 0:10:14]} 12. Be3 {[%emt 0:07:24]} Bg7 {[%emt 0:00:58]} 13.
Nd2 {[%emt 0:01:42]} Ne7 {[%emt 0:01:18]} 14. Nb3 {[%emt 0:01:58]} O-O {[%emt
0:00:47]} 15. a3 {[%emt 0:03:00]} Ra4 {[%emt 0:05:48]} 16. Bf1 {[%emt 0:09:41]}
Qa8 {[%emt 0:01:29]} 17. Rac1 {[%emt 0:01:40]} Rc8 {[%emt 0:00:50]} 18. Bg5 {
[%emt 0:05:45]} Nf6 {[%emt 0:14:52]} 19. Bd2 {[%emt 0:04:04]} Nd7 {[%emt 0:04:
42]} 20. Bg5 {[%emt 0:00:55]} Nf5 {[%emt 0:08:21]} 21. Bb5 {[%emt 0:01:20]}
Rxd4 {[%emt 0:01:20]} 22. g4 {[%emt 0:03:20]} Nc5 {[%emt 0:02:08]} 23. Be3 {
[%emt 0:07:20]} Nxb3 {[%emt 0:04:51]} 24. Qxb3 {[%emt 0:02:54]} Nxe3 {[%emt 0:
00:26]} 25. fxe3 {[%emt 0:00:02]} Rd2 {[%emt 0:00:07]} 26. Re2 {[%emt 0:00:26]}
Bxb2 {[%emt 0:04:19]} 27. Rxc6 {[%emt 0:01:04]} Rxe2 {[%emt 0:03:09]} 28. Rxc8+
{[%emt 0:00:02]} Qxc8 {[%emt 0:00:03]} 29. Bxe2 {[%emt 0:00:01]} Qc1+ {[%emt 0:
00:55]} 30. Kf2 {[%emt 0:00:28]} Bc3 {[%emt 0:00:40]} 31. Qa2 {[%emt 0:01:45]}
Be1+ {[%emt 0:00:21]} 32. Kg2 {[%emt 0:00:23]} Qxe3 {[%emt 0:00:14]} 33. Bf1 {
[%emt 0:00:25]} Bc3 {[%emt 0:01:20]} 34. Qe2 {[%emt 0:00:35]} Qc1 {[%emt 0:00:
15]} 35. a4 {[%emt 0:00:13]} Bd4 {[%emt 0:00:28]} 36. Qd3 {[%emt 0:00:29]} Be5
{[%emt 0:00:47]} 37. Qe2 {[%emt 0:00:49]} Qf4 {[%emt 0:00:20]} 38. Kh1 {[%emt
0:00:05]} Bd6 {[%emt 0:00:15]} 39. Qf2 {[%emt 0:00:25]} Bc5 {[%emt 0:00:29]}
40. Qg3 {[%emt 0:00:34]} Qxa4 {[%emt 0:05:17]} 41. Qb8+ {[%emt 0:00:13]} Kg7 {
[%emt 0:00:16]} 42. Qe5+ {[%emt 0:00:04]} Kf8 {[%emt 0:00:09]} 43. Qb8+ {[%emt
0:01:18]} Qe8 {[%emt 0:00:17]} 44. Qe5 {[%emt 0:01:50]} Kg8 {[%emt 0:00:19]}
45. h4 {[%emt 0:00:40]} Qd8 {[%emt 0:01:22]} 46. h5 {[%emt 0:00:50]} Qh4+ {
[%emt 0:00:34]} 47. Qh2 {[%emt 0:00:16]} Qxh2+ {[%emt 0:01:48]} 48. Kxh2 {
[%emt 0:00:02]} gxh5 {[%emt 0:01:01]} 49. gxh5 {[%emt 0:00:02]} Kg7 {[%emt 0:
00:08]} 50. Bd3 {[%emt 0:00:16]} Kh6 {[%emt 0:00:29]} 51. Kh3 {[%emt 0:00:06]}
Kxh5 {[%emt 0:01:44]} 52. Bxh7 {[%emt 0:00:02]} Kg5 {[%emt 0:00:11]} 53. Bd3 {
[%emt 0:00:12]} Kf4 {[%emt 0:00:13]} 54. Kg2 {[%emt 0:00:11]} f5 {[%emt 0:00:
28]} 55. Bb5 {[%emt 0:00:35]} e5 {[%emt 0:00:40]} 56. Bc6 {[%emt 0:00:30]} d4 {
[%emt 0:00:07]} 57. Kf1 {[%emt 0:00:15]} Ke3 {[%emt 0:00:16]} 58. Ke1 {[%emt 0:
00:05]} e4 {[%emt 0:00:16]} 59. fxe4 {[%emt 0:00:16]} fxe4 {[%emt 0:00:04]} 60.
Kd1 {[%emt 0:00:20]} d3 {[%emt 0:00:09]} 61. Ke1 {[%emt 0:01:24]} Kd4 {[%emt 0:
00:26]} 62. Kd1 {[%emt 0:00:14]} e3 {[%emt 0:00:08]} 0-1

[Event "Lithuanian Chess League 2021"]
[Site "Various cities"]
[Date "2021.05.14"]
[Round "5.11"]
[White "Stremavicius, Titas"]
[Black "Kalvaitis, Sigitas"]
[Result "1/2-1/2"]
[WhiteElo "2484"]
[BlackElo "2184"]
[PlyCount "103"]
[TimeControl "90/40+30:0"]
[WhiteClock "0:01:50"]
[BlackClock "0:25:05"]

1. c4 {[%emt 0:00:12]} e6 {[%emt 0:01:12]} 2. Nc3 {[%emt 0:00:17]} d5 {[%emt 0:
00:48]} 3. d4 {[%emt 0:00:25]} Nf6 {[%emt 0:00:06]} 4. cxd5 {[%emt 0:03:30]}
Nxd5 {[%emt 0:00:33]} 5. e3 {[%emt 0:00:09]} c5 {[%emt 0:05:01]} 6. Bd3 {[%emt
0:03:13]} Nc6 {[%emt 0:02:39]} 7. Nf3 {[%emt 0:00:17]} Be7 {[%emt 0:04:29]} 8.
O-O {[%emt 0:02:51]} cxd4 {[%emt 0:04:13]} 9. exd4 {[%emt 0:00:27]} O-O {[%emt
0:00:15]} 10. Qe2 {[%emt 0:01:19]} Bf6 {[%emt 0:03:55]} 11. Qe4 {[%emt 0:01:21]
} g6 {[%emt 0:00:49]} 12. Bh6 {[%emt 0:00:08]} Re8 {[%emt 0:06:56]} 13. Rad1 {
[%emt 0:20:14]} Bd7 {[%emt 0:09:49]} 14. Nxd5 {[%emt 0:20:39]} exd5 {[%emt 0:
05:16]} 15. Qf4 {[%emt 0:00:06]} Bg7 {[%emt 0:05:48]} 16. Bxg7 {[%emt 0:01:59]}
Kxg7 {[%emt 0:00:04]} 17. Ne5 {[%emt 0:02:15]} Nxe5 {[%emt 0:01:41]} 18. dxe5 {
[%emt 0:00:03]} Qb6 {[%emt 0:01:05]} 19. Rd2 {[%emt 0:04:50]} Re6 {[%emt 0:06:
58]} 20. Re1 {[%emt 0:00:53]} Rae8 {[%emt 0:00:50]} 21. Rde2 {[%emt 0:01:15]}
Bb5 {[%emt 0:04:23]} 22. Bxb5 {[%emt 0:07:32]} Qxb5 {[%emt 0:00:05]} 23. b3 {
[%emt 0:00:11]} Qc5 {[%emt 0:04:16]} 24. Rc1 {[%emt 0:01:20]} Qb6 {[%emt 0:03:
09]} 25. h4 {[%emt 0:00:53]} h5 {[%emt 0:02:41]} 26. Rd1 {[%emt 0:07:21]} Qc5 {
[%emt 0:02:41]} 27. Qg3 {[%emt 0:00:17]} Kh7 {[%emt 0:11:19]} 28. Qf3 {[%emt 0:
03:17]} Kg8 {[%emt 0:01:18]} 29. Rxd5 {[%emt 0:02:16]} Qe7 {[%emt 0:00:14]} 30.
Qe4 {[%emt 0:00:20]} Rd8 {[%emt 0:00:12]} 31. g3 {[%emt 0:01:19]} Rxd5 {[%emt
0:00:57]} 32. Qxd5 {[%emt 0:00:03]} Kg7 {[%emt 0:00:09]} 33. Qd4 {[%emt 0:02:
36]} Qa3 {[%emt 0:01:35]} 34. Kg2 {[%emt 0:01:59]} Qa6 {[%emt 0:01:04]} 35. Rd2
{[%emt 0:04:16]} Qc6+ {[%emt 0:00:36]} 36. Kh2 {[%emt 0:01:30]} a5 {[%emt 0:01:
41]} 37. Qd5 {[%emt 0:01:24]} Qc3 {[%emt 0:00:50]} 38. Re2 {[%emt 0:00:10]} b6
{[%emt 0:01:21]} 39. Kg2 {[%emt 0:00:09]} Kf8 {[%emt 0:02:30]} 40. Qd8+ {[%emt
0:04:58]} Kg7 {[%emt 0:00:07]} 41. Qd5 {[%emt 0:00:04]} Kf8 {[%emt 0:00:05]}
42. Re3 {[%emt 0:17:04]} Qc7 {[%emt 0:03:14]} 43. Qd4 {[%emt 0:01:51]} Qc6+ {
[%emt 0:01:30]} 44. Kh2 {[%emt 0:04:11]} Kg7 {[%emt 0:00:44]} 45. Rc3 {[%emt 0:
00:18]} Qb5 {[%emt 0:00:47]} 46. Re3 {[%emt 0:00:33]} Qc6 {[%emt 0:01:07]} 47.
a4 {[%emt 0:00:09]} Qc2 {[%emt 0:01:18]} 48. Rc3 {[%emt 0:05:58]} Qe2 {[%emt 0:
07:46]} 49. Rc8 {[%emt 0:00:35]} Qxe5 {[%emt 0:00:13]} 50. Qd8 {[%emt 0:04:06]}
Kh6 {[%emt 0:00:18]} 51. Rb8 {[%emt 0:00:45]} Qf6 {[%emt 0:01:34]} 52. Qf8+ {
[%emt 0:00:50]} 1/2-1/2

[Event "Lithuanian Chess League 2021"]
[Site "Various cities"]
[Date "2021.05.14"]
[Round "5.12"]
[White "Vasylius, Kestutis"]
[Black "Juksta, Karolis"]
[Result "0-1"]
[WhiteElo "2064"]
[BlackElo "2437"]
[PlyCount "74"]
[TimeControl "90/40+30:0"]
[WhiteClock "0:12:46"]
[BlackClock "0:00:57"]

1. e4 {[%emt 0:00:02]} e6 {[%emt 0:00:09]} 2. d4 {[%emt 0:00:33]} d5 {[%emt 0:
00:10]} 3. Nc3 {[%emt 0:00:25]} Bb4 {[%emt 0:01:30]} 4. e5 {[%emt 0:01:19]} c5
{[%emt 0:00:23]} 5. a3 {[%emt 0:00:30]} Bxc3+ {[%emt 0:00:06]} 6. bxc3 {[%emt
0:00:06]} Qa5 {[%emt 0:00:22]} 7. Qd2 {[%emt 0:03:33]} Nc6 {[%emt 0:07:26]} 8.
Nf3 {[%emt 0:00:57]} Nge7 {[%emt 0:03:49]} 9. a4 {[%emt 0:05:52]} b6 {[%emt 0:
09:18]} 10. Ba3 {[%emt 0:02:53]} Ba6 {[%emt 0:07:36]} 11. dxc5 {[%emt 0:05:39]}
Bxf1 {[%emt 0:04:22]} 12. Bb4 {[%emt 0:02:34]} Qa6 {[%emt 0:07:13]} 13. Rxf1 {
[%emt 0:00:22]} bxc5 {[%emt 0:03:51]} 14. Bxc5 {[%emt 0:00:44]} O-O {[%emt 0:
00:16]} 15. Qd3 {[%emt 0:06:03]} Qa5 {[%emt 0:01:43]} 16. Ng5 {[%emt 0:01:25]}
g6 {[%emt 0:01:24]} 17. Qh3 {[%emt 0:04:20]} h5 {[%emt 0:02:03]} 18. Bd6 {
[%emt 0:00:55]} d4 {[%emt 0:21:15]} 19. Ne4 {[%emt 0:04:59]} Nf5 {[%emt 0:09:
00]} 20. Nf6+ {[%emt 0:10:19]} Kh8 {[%emt 0:05:51]} 21. Bxf8 {[%emt 0:07:19]}
Qxe5+ {[%emt 0:02:27]} 22. Kd1 {[%emt 0:00:14]} Qxf6 {[%emt 0:00:37]} 23. Bc5 {
[%emt 0:00:42]} Qe5 {[%emt 0:08:16]} 24. g4 {[%emt 0:01:43]} Qxc5 {[%emt 0:02:
46]} 25. gxf5 {[%emt 0:00:18]} exf5 {[%emt 0:00:11]} 26. c4 {[%emt 0:06:46]}
Qxc4 {[%emt 0:00:25]} 27. Re1 {[%emt 0:01:59]} Rb8 {[%emt 0:00:51]} 28. Re2 {
[%emt 0:03:05]} Kg7 {[%emt 0:00:19]} 29. Qg3 {[%emt 0:02:16]} Qd5 {[%emt 0:00:
40]} 30. f4 {[%emt 0:03:54]} Rb4 {[%emt 0:00:20]} 31. Qg2 {[%emt 0:03:38]} Qd6
{[%emt 0:00:24]} 32. Qf3 {[%emt 0:04:08]} d3 {[%emt 0:00:35]} 33. Rf2 {[%emt 0:
01:33]} dxc2+ {[%emt 0:00:40]} 34. Kc1 {[%emt 0:00:40]} Qf6 {[%emt 0:00:24]}
35. Qa3 {[%emt 0:00:34]} Re4 {[%emt 0:00:40]} 36. Kxc2 {[%emt 0:00:55]} Nb4+ {
[%emt 0:00:22]} 37. Kd1 {[%emt 0:03:06]} Qd4+ {[%emt 0:00:13]} 0-1

[Event "Lithuanian Chess League 2021"]
[Site "Various cities"]
[Date "2021.05.14"]
[Round "5.13"]
[White "Stremavicius, Pijus"]
[Black "Jonkus, Lukas"]
[Result "1-0"]
[WhiteElo "2214"]
[BlackElo "1845"]
[PlyCount "41"]
[TimeControl "90/40+30:0"]
[WhiteClock "1:11:11"]
[BlackClock "0:49:19"]

1. e4 {[%emt 0:00:02]} d5 {[%emt 0:00:29]} 2. exd5 {[%emt 0:00:10]} Nf6 {[%emt
0:00:09]} 3. d4 {[%emt 0:02:37]} Nxd5 {[%emt 0:00:45]} 4. c4 {[%emt 0:00:39]}
Nf6 {[%emt 0:00:46]} 5. Nc3 {[%emt 0:00:32]} c6 {[%emt 0:02:25]} 6. Be2 {[%emt
0:00:46]} Bf5 {[%emt 0:01:00]} 7. Nf3 {[%emt 0:02:30]} e6 {[%emt 0:01:20]} 8.
Nh4 {[%emt 0:03:47]} Bg6 {[%emt 0:04:07]} 9. O-O {[%emt 0:00:21]} Ne4 {[%emt 0:
05:49]} 10. Nxg6 {[%emt 0:01:22]} Nxc3 {[%emt 0:00:07]} 11. bxc3 {[%emt 0:00:
13]} hxg6 {[%emt 0:00:07]} 12. Rb1 {[%emt 0:01:57]} Bd6 {[%emt 0:09:40]} 13. g3
{[%emt 0:01:16]} Rxh2 {[%emt 0:08:50]} 14. Bg5 {[%emt 0:07:52]} Rh1+ {[%emt 0:
04:50]} 15. Kxh1 {[%emt 0:00:10]} Qxg5 {[%emt 0:00:07]} 16. Rxb7 {[%emt 0:01:
22]} Nd7 {[%emt 0:02:12]} 17. Kg2 {[%emt 0:02:18]} f5 {[%emt 0:01:10]} 18. Bf3
{[%emt 0:00:48]} Rc8 {[%emt 0:01:48]} 19. Qe2 {[%emt 0:00:26]} e5 {[%emt 0:05:
14]} 20. dxe5 {[%emt 0:00:22]} Nxe5 {[%emt 0:00:18]} 21. c5 {[%emt 0:00:15]}
1-0

[Event "Lithuanian Chess League 2021"]
[Site "Various cities"]
[Date "2021.05.14"]
[Round "5.14"]
[White "Maciuitis, Ignas"]
[Black "Vaznonis, Vytautas"]
[Result "0-1"]
[WhiteElo "1789"]
[BlackElo "2382"]
[PlyCount "102"]
[TimeControl "90/40+30:0"]
[WhiteClock "0:03:27"]
[BlackClock "0:06:38"]

1. e4 {[%emt 0:00:02]} e6 {[%emt 0:00:06]} 2. d4 {[%emt 0:00:03]} d5 {[%emt 0:
00:05]} 3. Nc3 {[%emt 0:00:03]} Bb4 {[%emt 0:01:21]} 4. e5 {[%emt 0:00:12]} c5
{[%emt 0:00:10]} 5. a3 {[%emt 0:00:05]} Bxc3+ {[%emt 0:00:10]} 6. bxc3 {[%emt
0:00:04]} Qa5 {[%emt 0:00:05]} 7. Bd2 {[%emt 0:01:20]} Qa4 {[%emt 0:00:06]} 8.
Nf3 {[%emt 0:17:49]} b6 {[%emt 0:01:58]} 9. Be2 {[%emt 0:01:40]} Ba6 {[%emt 0:
00:32]} 10. Ra2 {[%emt 0:04:02]} Ne7 {[%emt 0:01:05]} 11. O-O {[%emt 0:00:23]}
Nbc6 {[%emt 0:05:24]} 12. Be3 {[%emt 0:13:41]} cxd4 {[%emt 0:18:05]} 13. cxd4 {
[%emt 0:03:47]} Rc8 {[%emt 0:04:03]} 14. Bxa6 {[%emt 0:13:55]} Qxa6 {[%emt 0:
00:14]} 15. c3 {[%emt 0:00:22]} O-O {[%emt 0:07:56]} 16. Qc2 {[%emt 0:11:49]}
h6 {[%emt 0:01:15]} 17. Nh4 {[%emt 0:00:50]} Na5 {[%emt 0:01:18]} 18. f4 {
[%emt 0:01:47]} Qc4 {[%emt 0:05:09]} 19. Rc1 {[%emt 0:12:37]} Nb3 {[%emt 0:01:
05]} 20. Rb1 {[%emt 0:00:17]} Na5 {[%emt 0:01:15]} 21. Rc1 {[%emt 0:01:25]} Qb3
{[%emt 0:09:50]} 22. g4 {[%emt 0:04:02]} Qxc2 {[%emt 0:01:01]} 23. Rcxc2 {
[%emt 0:00:58]} Rc7 {[%emt 0:15:14]} 24. Bd2 {[%emt 0:02:21]} Ng6 {[%emt 0:04:
51]} 25. Ng2 {[%emt 0:01:09]} f5 {[%emt 0:00:09]} 26. exf6 {[%emt 0:00:27]}
Rxf6 {[%emt 0:00:04]} 27. h3 {[%emt 0:02:00]} Rf8 {[%emt 0:03:33]} 28. Be1 {
[%emt 0:01:37]} Rc6 {[%emt 0:01:22]} 29. Rf2 {[%emt 0:00:27]} Nc4 {[%emt 0:01:
46]} 30. a4 {[%emt 0:01:10]} Nd6 {[%emt 0:00:47]} 31. Rf3 {[%emt 0:01:04]} Ne4
{[%emt 0:00:49]} 32. Ra3 {[%emt 0:01:06]} Ng5 {[%emt 0:01:30]} 33. Rg3 {[%emt
0:01:29]} Nxf4 {[%emt 0:00:28]} 34. Nxf4 {[%emt 0:00:07]} Rxf4 {[%emt 0:00:05]}
35. Kg2 {[%emt 0:00:24]} Re4 {[%emt 0:01:32]} 36. Kf1 {[%emt 0:00:32]} Rc7 {
[%emt 0:01:18]} 37. Ra2 {[%emt 0:01:01]} Rf7+ {[%emt 0:00:11]} 38. Rf2 {[%emt
0:00:09]} Rxe1+ {[%emt 0:00:39]} 39. Kxe1 {[%emt 0:00:10]} Rxf2 {[%emt 0:00:05]
} 40. Kxf2 {[%emt 0:00:05]} Ne4+ {[%emt 0:00:03]} 41. Kf3 {[%emt 0:00:13]} Nxg3
{[%emt 0:00:06]} 42. Kxg3 {[%emt 0:00:05]} Kf7 {[%emt 0:01:23]} 43. h4 {[%emt
0:01:25]} g5 {[%emt 0:01:54]} 44. hxg5 {[%emt 0:00:18]} hxg5 {[%emt 0:00:07]}
45. Kf3 {[%emt 0:00:09]} Ke7 {[%emt 0:02:39]} 46. Ke3 {[%emt 0:00:39]} Kd6 {
[%emt 0:00:06]} 47. Kd3 {[%emt 0:00:29]} e5 {[%emt 0:01:17]} 48. Ke3 {[%emt 0:
01:12]} e4 {[%emt 0:03:54]} 49. Kd2 {[%emt 0:01:11]} Kc6 {[%emt 0:00:11]} 50.
Ke3 {[%emt 0:00:08]} b5 {[%emt 0:00:19]} 51. a5 {[%emt 0:00:18]} Kb7 {[%emt 0:
00:41]} 0-1

[Event "Lithuanian Chess League 2021"]
[Site "Various cities"]
[Date "2021.05.14"]
[Round "5.15"]
[White "Butvilas, Aistis"]
[Black "Kurmis, Edvinas"]
[Result "1-0"]
[WhiteElo "2063"]
[BlackElo "1654"]
[PlyCount "83"]
[TimeControl "90/40+30:0"]
[WhiteClock "0:33:13"]
[BlackClock "0:01:15"]

1. d4 {[%emt 0:00:01]} d5 {[%emt 0:00:11]} 2. c4 {[%emt 0:00:41]} e6 {[%emt 0:
00:14]} 3. Nc3 {[%emt 0:00:11]} Nf6 {[%emt 0:00:51]} 4. cxd5 {[%emt 0:00:10]}
exd5 {[%emt 0:00:10]} 5. Bg5 {[%emt 0:00:06]} c6 {[%emt 0:04:13]} 6. e3 {[%emt
0:00:06]} Bf5 {[%emt 0:02:22]} 7. Qf3 {[%emt 0:00:35]} Bg6 {[%emt 0:01:47]} 8.
Bxf6 {[%emt 0:00:06]} Qxf6 {[%emt 0:00:15]} 9. Qxf6 {[%emt 0:00:06]} gxf6 {
[%emt 0:00:06]} 10. h4 {[%emt 0:01:53]} h5 {[%emt 0:03:31]} 11. Nge2 {[%emt 0:
00:26]} Bd6 {[%emt 0:00:54]} 12. Nf4 {[%emt 0:02:34]} Nd7 {[%emt 0:01:06]} 13.
Nce2 {[%emt 0:24:02]} Bb4+ {[%emt 0:02:41]} 14. Kd1 {[%emt 0:01:28]} O-O-O {
[%emt 0:04:54]} 15. Ng3 {[%emt 0:01:20]} Bd6 {[%emt 0:30:59]} 16. Be2 {[%emt 0:
03:01]} Be4 {[%emt 0:07:28]} 17. Ngxh5 {[%emt 0:04:03]} Rdg8 {[%emt 0:01:46]}
18. Rh2 {[%emt 0:08:06]} Bg6 {[%emt 0:25:51]} 19. Ng3 {[%emt 0:00:28]} Nf8 {
[%emt 0:04:18]} 20. Bf3 {[%emt 0:08:50]} Ne6 {[%emt 0:01:38]} 21. Nge2 {[%emt
0:01:28]} Nxf4 {[%emt 0:02:31]} 22. exf4 {[%emt 0:02:32]} Bd3 {[%emt 0:01:53]}
23. g3 {[%emt 0:00:33]} Re8 {[%emt 0:00:27]} 24. Nc3 {[%emt 0:00:39]} b5 {
[%emt 0:01:08]} 25. Kd2 {[%emt 0:00:34]} Be4 {[%emt 0:00:42]} 26. Bxe4 {[%emt
0:00:58]} dxe4 {[%emt 0:00:10]} 27. Rhh1 {[%emt 0:00:26]} f5 {[%emt 0:00:57]}
28. Ke2 {[%emt 0:01:20]} Bb4 {[%emt 0:00:39]} 29. Rac1 {[%emt 0:00:35]} Kb7 {
[%emt 0:00:30]} 30. d5 {[%emt 0:00:53]} Bxc3 {[%emt 0:00:36]} 31. dxc6+ {[%emt
0:00:06]} Kxc6 {[%emt 0:00:11]} 32. Rxc3+ {[%emt 0:00:00]} Kb6 {[%emt 0:00:32]}
33. Rhc1 {[%emt 0:00:20]} Re6 {[%emt 0:00:20]} 34. Rc5 {[%emt 0:04:13]} Rhe8 {
[%emt 0:01:09]} 35. Rxf5 {[%emt 0:00:25]} e3 {[%emt 0:00:22]} 36. Rc2 {[%emt 0:
01:18]} f6 {[%emt 0:00:34]} 37. fxe3 {[%emt 0:00:32]} Rxe3+ {[%emt 0:00:10]}
38. Kf2 {[%emt 0:00:04]} R3e6 {[%emt 0:00:25]} 39. g4 {[%emt 0:00:51]} Rg8 {
[%emt 0:00:41]} 40. g5 {[%emt 0:01:10]} fxg5 {[%emt 0:00:18]} 41. hxg5 {[%emt
0:00:27]} Rh8 {[%emt 0:00:22]} 42. Kf3 {[%emt 0:00:32]} 1-0